Cogmind - Beta 14 @@@ ROGUE MODE // 2025.03.10 @ 22:42:29 Player: moonlol Result: Destroyed by D-53 Grenadier with Mini Grenade Launcher Performance ------------- Evolutions (0) 0 Regions Visited (4) 800 Robots Destroyed (19) 95 Value Destroyed (382) 382 Prototype IDs (0) 0 Alien Tech Used (0) 0 Bonus (0) 0 TOTAL SCORE: 1277 Bonus ------- None Cogmind --------- Core Integrity 0/250 Matter 243/300 Energy 98/100 System Corruption 4% Temperature Cool (0) Movement Core (50) Location -9/Mines Parts ------- > --- POWER (1) -------- (None) > --- PROPULSION (2) --- (None) > --- UTILITY (2) ------ (None) > --- WEAPON (2) ------- (None) > --- INVENTORY (5) ---- Aluminum Leg Seismic Detector Propulsion Shielding Light Armor Plating Tractor Beam Peak State ------------ > --- POWER ------------ Light Nuclear Core > --- PROPULSION ------- Light Treads Light Treads > --- UTILITY ---------- High-capacity Storage Unit Light Armor Plating > --- WEAPON ----------- EM Pulse Gun Heavy Assault Rifle > --- INVENTORY -------- Ion Engine Ion Engine Light Treads Aluminum Leg Aluminum Leg Wheel Wheel Medium Storage Unit Huge Storage Unit Seismic Detector Targeting Computer Propulsion Shielding Utility Shielding Light Armor Plating Tractor Beam Light Assault Rifle Grenade Launcher Grenade Launcher Mining Laser Plasma Flamer [Rating: 12] Favorites ----------- Power Light Nuclear Core Engine Ion Engine Power Core Light Nuclear Core Propulsion Light Treads Treads Light Treads Utility High-capacity Storage Unit Device Seismic Detector Storage High-capacity Storage Unit Protection Light Armor Plating Weapon EM Pulse Gun Energy Gun EM Pulse Gun Ballistic Gun Heavy Assault Rifle Build | -11 -10 -10 -10 -9 ------- Run | Yrd Mat Min Exi Min Slots Evolved . | . . . . . Power . | . . . . . Propulsion . | . . . . . Utility . | . . . . . Weapon . | . . . . . Parts Attached 17 | 7 4 5 . 1 Power 2 | 1 1 . . . Engine 1 | 1 . . . . Core 1 | . 1 . . . Reactor . | . . . . . Propulsion 4 | 2 . 1 . 1 Treads 4 | 2 . 1 . 1 Leg . | . . . . . Wheel . | . . . . . Hover . | . . . . . Flight . | . . . . . Utility 7 | 2 3 2 . . Device 1 | 1 . . . . Storage 3 | 1 2 . . . Processor . | . . . . . Hackware . | . . . . . Protection 3 | . 1 2 . . Artifact . | . . . . . Weapon 4 | 2 . 2 . . Energy Gun 1 | 1 . . . . Energy Cannon . | . . . . . Ballistic Gun 3 | 1 . 2 . . Ballistic Cannon . | . . . . . Launcher . | . . . . . Special Weapon . | . . . . . Impact Weapon . | . . . . . Slashing Weapon . | . . . . . Piercing Weapon . | . . . . . Special Melee Weapon . | . . . . . Unidentified Prototypes . | . . . . . Corrupted Parts 1 | . 1 . . . System Corruption 4 | . 4 . . . Parts Lost 2 | . . 1 . 1 Power 1 | . . . . 1 Propulsion . | . . . . . Utility 1 | . . 1 . . Weapon . | . . . . . Highest Loss Streak 1 | . . 1 . 1 To Critical Strikes . | . . . . . Average Slot Usage (%) 98 | . 100 95 100 100 Engine 3 | . 13 . . . Core 10 | . . 14 14 14 Treads 28 | . 28 28 28 28 Device 1 | . 7 . . . Storage 14 | . 14 14 14 14 Protection 11 | . 6 9 14 14 Energy Gun 14 | . 14 14 14 14 Ballistic Gun 14 | . 14 14 14 14 Peak Build Rating 12 | 7 10 12 12 12 Average Rating 10 | 4 7 10 12 11 On Entrance 8 | . 7 10 12 12 Naked Turns 1 | . . . . 1 Heaviest Build 53 | 14 51 53 53 53 Greatest Support 40 | 40 40 40 40 40 Greatest Overweight (x) 1 | . 1 1 1 1 Average Overweight (x) . | . . 1 1 . Largest Inventory Capacity 20 | 8 20 20 20 20 Average Capacity 18 | 6 14 20 20 19 Most Carried 20 | 7 13 20 20 20 Average Carried 16 | 4 9 17 20 19 Final Capacity 20 | 8 20 20 20 5 Final Carried 20 | 7 13 20 20 5 Class Distribution -------------------- 91% | Mutant 8% | Scavenger-Mutant Dominant Class ---------------- Mutant | -10/Materials Mutant | -10/Mines Mutant | -10/Exiles Scavenger-Mutant | -9/Mines Resources | -11 -10 -10 -10 -9 ----------- Run | Yrd Mat Min Exi Min Matter Collected 443 | 178 156 85 . 24 Remotely . | . . . . . Salvage Created 687 | 109 433 46 . 99 Parts 41 | 7 25 5 . 4 Haulers Intercepted . | . . . . . Recyclers Shooed . | . . . . . Parts Field Recycled . | . . . . . Retrieved Matter . | . . . . . Parts Self-Destructed . | . . . . . Prevented . | . . . . . Kills | -11 -10 -10 -10 -9 ------- Run | Yrd Mat Min Exi Min Combat Hostiles Destroyed 12 | . 7 3 . 2 Guns 9 | . 5 3 . 1 AOE 3 | . 2 . . 1 Classes Destroyed 8 | 2 5 . . 1 Worker 1 | . 1 . . . Tunneler 2 | 2 . . . . Recycler 2 | 1 1 . . . Operator 1 | . 1 . . . Watcher 1 | . 1 . . . Swarmer 5 | . 2 3 . . Grunt 6 | . 5 . . 1 Brawler 1 | . . . . 1 Best Kill Streak 3 | 3 3 3 . 2 Combat Bots Only 3 | . 3 3 . 2 Max Kills in Single Turn 2 | 1 2 1 . 1 Gunslinging . | . . . . . Exploded 1 | . 1 . . 1 Melee . | . . . . . Uniques/NPCs Destroyed . | . . . . . Combat | -11 -10 -10 -10 -9 -------- Run | Yrd Mat Min Exi Min Hostile Shots Fired 60 | . 38 12 . 10 Missed 14 | . 9 5 . . Damage Taken 881 | 30 378 61 . 412 Core 257 | . 58 . . 199 Absorbed by Shields . | . . . . . Core Remaining (%) 100 | 100 . . . . Volleys Fired 41 | 6 28 4 . 3 Largest 2 | 2 2 2 . 2 Hottest 63 | 60 60 60 . 63 Shots Fired 83 | 12 56 9 1 5 Gun 83 | 12 56 9 1 5 Cannon . | . . . . . Launcher . | . . . . . Special . | . . . . . Kinetic 42 | 6 28 5 1 2 Thermal . | . . . . . Explosive . | . . . . . Electromagnetic 41 | 6 28 4 . 3 Robot Hit Streak 8 | 2 7 8 . 4 Robot Miss Streak 4 | 1 4 1 . 1 Penetration Max . | . . . . . Secondary Targets 3 | . 1 2 . . Max Gunslinging Chain 1 | . 1 1 . . Shots Hit Robots 49 | 7 34 4 . 4 Core Hits 25 | 4 16 3 . 2 Critical Kills . | . . . . . Critical Parts Destroyed . | . . . . . Critical Strikes 2 | 1 1 . . . Corrupt 2 | 1 1 . . . Melee Attacks . | . . . . . Impact . | . . . . . Slashing . | . . . . . Piercing . | . . . . . Sneak Attacks . | . . . . . Combat Hostiles . | . . . . . Follow-up Attacks . | . . . . . Damage Inflicted 803 | 154 512 44 . 93 Guns 571 | 92 395 44 . 40 Cannons . | . . . . . Explosions 232 | 62 117 . . 53 Melee . | . . . . . Ramming . | . . . . . Kinetic 170 | 38 114 . . 18 Thermal 232 | 62 117 . . 53 Explosive . | . . . . . Electromagnetic 401 | 54 281 44 . 22 Impact . | . . . . . Slashing . | . . . . . Piercing . | . . . . . Highest Corruption 4 | . 4 4 4 4 Average Corruption 4 | . 4 4 4 4 Corruption Purged . | . . . . . Corruption Blocked . | . . . . . Effects 44 | . 1 13 23 7 Message Errors 15 | . . 3 9 3 Matter Fused 11 | . . 4 6 1 Heat Flow Errors 6 | . 1 3 2 . Energy Discharges 5 | . . . 4 1 Data Loss (minor) 1 | . . . . 1 Data Loss (major) 1 | . . 1 . . Misfires 2 | . . 1 1 . Alerts 2 | . . 1 1 . Weapon Failures 1 | . . . . 1 Overload Shots . | . . . . . Overflow Damage . | . . . . . Projectiles . | . . . . . Explosions . | . . . . . Melee . | . . . . . Knockbacks . | . . . . . Impact . | . . . . . Kinetic . | . . . . . Secondary . | . . . . . Self-Inflicted Damage 86 | 30 56 . . . Shots 3 | 1 2 . . . Rammed . | . . . . . Targets Rammed . | . . . . . Kicked . | . . . . . Crushed . | . . . . . Highest Temperature 230 | 40 210 177 230 18 Average Temperature 73 | 22 86 56 100 10 Received Heat Transfer 174 | . 174 . . . Siege Activations . | . . . . . Robots Corrupted . | . . . . . Combat Hostiles . | . . . . . Parts Fried . | . . . . . Impact Corruptions . | . . . . . Robots Melted . | . . . . . Combat Hostiles . | . . . . . Parts Melted . | . . . . . Heat Transferred 100 | 50 50 . . . Parts Sabotaged . | . . . . . Parts Stolen . | . . . . . Parts Stripped . | . . . . . Power Chain Reactions 4 | 1 2 . . 1 Alert | -11 -10 -10 -10 -9 ------- Run | Yrd Mat Min Exi Min Peak Influence 226 | 15 226 121 . 54 Initial 31 | . 9 31 . . Average 70 | 4 88 74 . 45 Maximum Alert Level 1 | . 1 . . . Low Security (%) 97 | 100 92 100 . 100 Level 1 2 | . 7 . . . Level 2 . | . . . . . Level 3 . | . . . . . Level 4 . | . . . . . Level 5 . | . . . . . High Security . | . . . . . Max Security . | . . . . . Squads Dispatched 1 | . 1 . . . Investigation 1 | . 1 . . . Extermination . | . . . . . Reinforcement . | . . . . . Assault . | . . . . . Garrison . | . . . . . Intercept . | . . . . . Searches Triggered . | . . . . . Construction Impeded . | . . . . . Haulers Reinforced . | . . . . . Active Scanning Responses . | . . . . . Cargo Convoy Interrupts . | . . . . . Stealth | -11 -10 -10 -10 -9 --------- Run | Yrd Mat Min Exi Min Distress Signals . | . . . . . Communications Jammed . | . . . . . Distress Signals . | . . . . . Times Spotted 20 | . 13 4 . 3 Peak Tracking Total 3 | . 3 3 . 2 Tactical Retreats 1 | . 1 . . . Traps | -11 -10 -10 -10 -9 ------- Run | Yrd Mat Min Exi Min Traps Triggered 1 | . 1 . . . Indirectly . | . . . . . Trap Hack Attempts . | . . . . . Triggered . | . . . . . Disarmed . | . . . . . Reprogrammed . | . . . . . Reused . | . . . . . Traps Extracted . | . . . . . Installed . | . . . . . Triggered . | . . . . . Machines | -11 -10 -10 -10 -9 ---------- Run | Yrd Mat Min Exi Min Machines Disabled 2 | . 2 . . . Max in Single Turn 1 | . 1 . . . Machines Repaired . | . . . . . Machines Dismantled . | . . . . . Machines Sabotaged . | . . . . . Overloaded Fab Kills . | . . . . . Hacking | -11 -10 -10 -10 -9 --------- Run | Yrd Mat Min Exi Min Machines Accessed 5 | . 3 . 2 . Terminals 2 | . 2 . . . Fabricators . | . . . . . Repair Stations . | . . . . . Recycling Units 1 | . 1 . . . Scanalyzers . | . . . . . Garrison Access . | . . . . . Total Hacks 10 | . 8 . 2 . Successful 8 | . 6 . 2 . Failed 2 | . 2 . . . Catastrophic 1 | . 1 . . . Database Lockouts . | . . . . . Manual 5 | . 5 . . . Terminals 5 | . 5 . . . Fabricators . | . . . . . Repair Stations . | . . . . . Recycling Units 3 | . 3 . . . Scanalyzers . | . . . . . Garrison Access . | . . . . . Terminal Hacks 3 | . 1 . 2 . Record 2 | . . . 2 . Hauler Manifests 1 | . 1 . . . Fabricator Hacks . | . . . . . Repair Station Hacks . | . . . . . Recycling Unit Hacks 2 | . 2 . . . Report Inventory 1 | . 1 . . . Retrieve Components 1 | . 1 . . . Scanalyzer . | . . . . . Garrison Access Hacks . | . . . . . Unauthorized Hacks 3 | . 3 . . . Terminals 3 | . 3 . . . Track 1 | . 1 . . . Botnet 2 | . 2 . . . Fabricators . | . . . . . Repair Stations . | . . . . . Recycling Units . | . . . . . Scanalyzers . | . . . . . Garrison Access . | . . . . . Data Cores Recovered . | . . . . . Used . | . . . . . Hacking Detections 3 | . 3 . . . Full Trace Events . | . . . . . Feedback Events . | . . . . . Feedback Blocked . | . . . . . Robot Schematics Acquired . | . . . . . Robots Built . | . . . . . Authchips . | . . . . . Time . | . . . . . Total Robot Build Rating . | . . . . . Part Schematics Acquired . | . . . . . Parts Built . | . . . . . Authchips . | . . . . . Time . | . . . . . Total Part Build Rating . | . . . . . Parts Repaired . | . . . . . Time . | . . . . . Parts Recycled . | . . . . . Recycled Matter . | . . . . . Retrieved Matter . | . . . . . Retrieved Components 1 | . 1 . . . Parts Scanalyzed . | . . . . . Part Schematics Acquired . | . . . . . Parts Damaged . | . . . . . Bothacking | -11 -10 -10 -10 -9 ------------ Run | Yrd Mat Min Exi Min Used RIF Installer . | . . . . . Robots Hacked . | . . . . . Non-combat . | . . . . . Combat . | . . . . . Robot Hacks Applied . | . . . . . Relay Couplers Released . | . . . . . Fabnet Peak Effective % . | . . . . . Robots Rewired . | . . . . . Allies Hacked . | . . . . . Hacks Repelled . | . . . . . Allies | -11 -10 -10 -10 -9 -------- Run | Yrd Mat Min Exi Min Total Allies . | . . . . . Largest Group . | . . . . . Highest-Rated Group . | . . . . . Highest-Rated Ally . | . . . . . Total Orders . | . . . . . Ally Attacks . | . . . . . Total Damage . | . . . . . Kills . | . . . . . Allies Corrupted . | . . . . . Allies Melted . | . . . . . Intel | -11 -10 -10 -10 -9 ------- Run | Yrd Mat Min Exi Min Robot Analysis Total . | . . . . . Derelict Logs Recovered 1 | . . 1 . . Drone Launches . | . . . . . Drone Recoveries . | . . . . . Exploration | -11 -10 -10 -10 -9 ------------- Run | Yrd Mat Min Exi Min Turns Passed 2585 | 96 626 612 953 298 Spaces Moved 1066 | 42 279 226 398 121 Core 8 | 4 . . . 4 Treads 1058 | 38 279 226 398 117 Legs . | . . . . . Wheels . | . . . . . Hover . | . . . . . Flight . | . . . . . Fastest Speed 50 | 50 160 240 240 50 Average Speed 222 | 149 188 240 240 233 Slowest Speed 240 | 160 240 240 240 240 Overloaded Moves . | . . . . . Propulsion Burnouts . | . . . . . Robots Hopped . | . . . . . Cave-ins Triggered . | . . . . . Exploration Rate (%) 43 | 5 49 45 88 30 Regions Visited 4 Branch Regions 3 Pre-discovered Areas 1 | . . 1 . . Known Exits Taken . | . . . . . Unknown Exits Taken 4 | 1 1 1 1 . Scrap Searched 1 | . . 1 . . Spaces Dug . | . . . . . Terrain Destroyed 12 | 4 4 . . 4 Melee . | . . . . . Projectile . | . . . . . AOE 12 | 4 4 . . 4 Terrain Rammed . | . . . . . Walls Destroyed . | . . . . . Machines Disabled . | . . . . . Actions | -11 -10 -10 -10 -9 --------- Run | Yrd Mat Min Exi Min Total 1210 | 61 330 291 397 131 Wait 61 | . 14 42 . 5 Move 1062 | 41 278 225 397 121 Hop . | . . . . . Pick Up 20 | 7 3 10 . . Fast Attach 10 | 7 2 1 . . Attach . | . . . . . Detach 2 | . 2 . . . Swap 7 | . 2 4 . 1 Drop 7 | . 1 5 . 1 Fire 41 | 6 28 4 . 3 Melee . | . . . . . Ram . | . . . . . Kick . | . . . . . Crush . | . . . . . Escape Stasis . | . . . . . Rewire . | . . . . . Trap . | . . . . . Miscellaneous . | . . . . . Route ------- -11/Scrapyard -10/Materials (discovered 2 exits: [*Mat] / [*Min]) -10/Mines -10/Exiles -9/Mines History --------- Turn | Location | Event 8 | -11/Scrapyard | Discovered new exit (range 16) 97 | -11/Scrapyard | Entered Materials 316 | -10/Materials | Build established: Mutant 410 | -10/Materials | Discovered new exit (range 15) 638 | -10/Materials | Discovered new exit (range 13) 723 | -10/Materials | Entered Mines 795 | -10/Mines | A weapon hastily lodged in a ceiling crevice suddenly fell to the ground 876 | -10/Mines | Joined a pair of Derelicts in attacking an 0b10 outpost 1250 | -10/Mines | YI-UF0 nonchalantly dropped a Grenade Launcher on the ground 1323 | -10/Mines | Deemed a non-threat by the Exiles lab entrance 1326 | -10/Mines | Discovered new exit (range 5) 1335 | -10/Mines | Entered Exiles 1335 | -10/Exiles | Found Exiles lab abandoned 2269 | -10/Exiles | Discovered new exit (range 10) 2288 | -10/Exiles | Entered Mines 2289 | -9/Mines | Assembled infested the area 2583 | -9/Mines | Core integrity fell below 50% 2585 | -9/Mines | Released all parts (6) 2586 | -9/Mines | Destroyed by D-53 Grenadier with Mini Grenade Launcher Last Messages --------------- 02553_ System corrupted: Matter fused (-10). 02558_ U-05 Engineer lays Concrete. 02570_ U-05 Engineer builds a Wall. 02570_ K-01 Serf collects debris. 02574_ U-05 Engineer builds a Wall. 02574_ K-01 Serf collects debris. 02576_ U-05 Engineer lays Concrete. 02579_ K-01 Serf collects debris. 02580_ Lgt. Nuclear Core destroyed. 02582_ System corrupted: Hvy. Assault Rifle jammed. 02583_ U-05 Engineer lays Concrete. 02584_ The unstable cave ceiling collapses. 02584_ U-05 Engineer lays Concrete. 02585_ Released Lgt. Treads. 02585_ Released Hcp. Storage Unit. 02585_ Released EM Pulse Gun. 02585_ Released Lgt. Treads. 02585_ Released Lgt. Armor Plating. 02585_ Released Hvy. Assault Rifle. 02586_ D-53 Grenadier destroyed. Map ----- +----------------------------------------------------+ | ?????????????????????????????????????????????# | | ???????????????????????????????? ?????????# | | ????????????????????????????????? ####### | | ????????????????????????????????????# | | ????????????????????????????????????# | | ????????????????????????????????????######### ### | | ????????????????????????????????????????????# #?? | | ????????????????????????????????????????????# #?? | | ????????????????????????????????????????????# #?? | | ????????????????????????????????????????????# #?? | | ????????????????????????????????????????????# #?? | | ????????????????????????????????????????????# #?? | | ????????????????????????????????????????????# #?? | | ????????????????????????????????????????????# #?? | | ????????????????????????????????????????????# #?? | | ????????????????????????????????????????????# #?? | | ????????????????????????????????????????????# #?? | | ????????????????????????????????????????????# #?? | | ?????????????????????????????????############ #?? | | ?????????????????????????????????# #?? | | ???????????????????????########### ############?? | | ??????????????????#???## ## rt #????????????? | | ??????????????????# ### ## k #????????????? | | ?????????????????## # ######????????????? | | ??????????????#### ###???????????????? | | ??????????????# $ @ #####???????????? | | ???????????# =[] # ########????? | | ??????????# ## |*|[ # #????? | | ??????????? ????## !==!! #????? | | ??????????? ?????????# d [* =/ ## #????? | | ??????????????????????## !]! ##### #????? | | ???????????????????????# ##??#### ##????? | | ???????????????????????# ###???###?????? | | ???????????????????????## ##??????????? | | ????????????????????????# #??????????? | | ????????????????????????## ### #??????????? | | ?????????????????????????####?## ##??????????? | | ???????????????????????????????#######???????????? | | ?????????????????????????????????????????????????? | | ?????????????????????????????????????????????????? | | ?????????????????????????????????????????????????? | | | | | | | | | | | | | | | | | | | +----------------------------------------------------+ Best States ------------- Heat Dissipation 25 Energy Generation 14 Energy Capacity 250 Matter Stores 300 Matter Capacity 300 Sight Range 16 Terrain Scan Density 10 Armor Coverage 150 Utility Shielding 33 Evasion (%) 40 Recoil Reduction 2 Item Schematics ----------------- None Robot Schematics ------------------ None Fabricated ------------ Nothing Alien Tech Used ----------------- None Achievements -------------- None Challenges ------------ None Game ------ Seed DecoyCloakCompanion Manual? 0 Play Time 00:07:42 Cumulative 99.3 hours Start 2025.03.10 @ 21:57:46 End 2025.03.10 @ 22:42:29 Sessions 3 Manual Loads 0 Difficulty Rogue Special Mode None Game No. 113 Rogue 65 Adventurer 47 Explorer 1 Win Type - Total 10 Types 7/0/0/1/0/0/2/0/0 Lore% 51 Gallery% 58 Achievement% 62 Wizard Run 0 Options --------- Layout 0 ASCII 0 Keyboard 1 Movement Numpad Keybinds 0 Fullscreen 2 Font 18/SmallcapsGlow Map View 76x50 Zoom Use 0% Tactical HUD 1 Map Filters NONE Filters NONE Steam 1 RUN: e4b785d6-63f6-44d2-8ada-02e0ea8e5463